fUSD/lending_fUSD_20250209
["ID","MTS","AMOUNT","RATE_DAILY","PERIOD"]
[352397125,1739079038244,-500.0,9.999e-05,2]
[352397126,1739079038253,-500.0,9.999e-05,2]
[352397127,1739079038263,-500.0,9.999e-05,2]
[352397128,1739079038271,-500.0,9.999e-05,2]
[352397129,1739079038280,-500.0,9.999e-05,2]
[352397130,1739079038290,-885.9,9.999e-05,2]
[352397131,1739079038299,-418.15893007,9.999e-05,2]
[352397132,1739079038312,-500.0,9.999e-05,2]
[352397133,1739079038321,-500.0,9.999e-05,2]
[352397134,1739079038330,-500.0,9.999e-05,2]
[352397135,1739079038339,-500.0,9.999e-05,2]
[352397136,1739079038348,-500.0,9.999e-05,2]
[352397137,1739079038358,-173.58767649,9.999e-05,2]
[352397141,1739079039643,-319.6296,9.999e-05,2]
[352397142,1739079039715,-6.78272351,9.999e-05,2]
[352397143,1739079039725,-500.0,9.999e-05,2]
[352397144,1739079039735,-500.0,9.999e-05,2]
[352397145,1739079039744,-500.0,9.999e-05,2]
[352397146,1739079039754,-500.0,9.999e-05,2]
[352397147,1739079039763,-500.0,9.999e-05,2]
[352397148,1739079039772,-500.0,9.999e-05,2]
[352397149,1739079039782,-544.89846475,9.999e-05,2]
[352397150,1739079039793,-500.0,9.999e-05,2]
[352397151,1739079039802,-35871.62257174,0.0001,2]
[352397152,1739079039852,-96109.56992787,0.0001,2]
[352397153,1739079039863,-485.70945859,0.0001,2]
[352397154,1739079039983,-4540.28453403,0.0001,2]
[352397170,1739079042721,-467.84499314,9.999e-05,2]
[352397171,1739079042783,-32.15500686,9.999e-05,2]
[352397172,1739079042793,-3482.82691838,0.0001,2]
[352397173,1739079042802,-5000.0,0.0001,2]
[352397174,1739079042811,-204.65809689,0.0001,2]
[352397175,1739079042820,-625.0001663,0.0001,2]
[352397176,1739079042829,-3738.68418,0.0001,2]
[352397177,1739079042838,-500.0,0.00010136,2]
[352397178,1739079042847,-500.0,0.00010136,2]
[352397179,1739079042857,-500.0,0.00010136,2]
[352397180,1739079042867,-500.0,0.00010136,2]
[352397181,1739079042875,-500.0,0.00010136,2]
[352397182,1739079042885,-597.11,0.00010136,2]
[352397183,1739079042895,-500.0,0.00010136,2]
[352397184,1739079042904,-500.0,0.00010136,2]
[352397185,1739079042913,-329.38083313,0.00010136,2]
[352397186,1739079042923,-500.0,0.00010136,2]
[352397187,1739079042933,-500.0,0.00010136,2]
[352397188,1739079042943,-500.0,0.00010136,2]
[352397189,1739079042952,-500.0,0.00010136,2]
[352397190,1739079042961,-500.0,0.00010136,2]
[352397191,1739079042970,-500.0,0.00010136,2]
[352397192,1739079042979,-500.0,0.00010136,2]
[352397193,1739079042989,-500.0,0.00010136,2]
[352397194,1739079042998,-500.0,0.00010136,2]
[352397195,1739079043007,-500.0,0.00010136,2]
[352397197,1739079043016,-500.0,0.00010136,2]
[352397199,1739079043025,-500.0,0.00010136,2]
[352397201,1739079043035,-500.0,0.00010136,2]
[352397203,1739079043044,-500.0,0.00010136,2]
[352397205,1739079043053,-500.0,0.00010136,2]
[352397207,1739079043062,-500.0,0.00010136,2]
[352397209,1739079043071,-500.0,0.00010136,2]
[352397211,1739079043080,-500.0,0.00010136,2]
[352397213,1739079043089,-885.9,0.00010136,2]
[352397215,1739079043098,-500.0,0.00010136,2]
[352397218,1739079043108,-500.0,0.00010136,2]
[352397220,1739079043117,-500.0,0.00010136,2]
[352397222,1739079043127,-500.0,0.00010136,2]
[352397224,1739079043136,-500.0,0.00010136,2]
[352397227,1739079043145,-553.43995245,0.00010136,2]
[352397229,1739079043156,-500.0,0.00010136,2]
[352397230,1739079043165,-500.0,0.00010136,2]
[352397231,1739079043174,-500.0,0.00010136,2]
[352397232,1739079043184,-500.0,0.00010136,2]
[352397233,1739079043193,-371.3,0.00010137,2]
[352397234,1739079043202,-165.98,0.00010137,2]
[352397235,1739079043212,-182.44,0.00010137,2]
[352397236,1739079043221,-500.0,0.00010273,2]
[352397237,1739079043230,-500.0,0.00010273,2]
[352397238,1739079043240,-500.0,0.00010273,2]
[352397239,1739079043249,-500.0,0.00010273,2]
[352397240,1739079043258,-500.0,0.00010273,2]
[352397241,1739079043267,-597.11,0.00010273,2]
[352397242,1739079043277,-500.0,0.00010273,2]
[352397243,1739079043286,-500.0,0.00010273,2]
[352397244,1739079043296,-500.0,0.00010273,2]
[352397245,1739079043305,-500.0,0.00010273,2]
[352397246,1739079043316,-500.0,0.00010273,2]
[352397247,1739079043325,-413.65788346,0.00010273,2]
[352397248,1739079043335,-500.0,0.00010273,2]
[352397249,1739079043344,-500.0,0.00010273,2]
[352397250,1739079043354,-313.45404525,0.00010273,2]
[352397251,1739079043363,-500.0,0.00010273,2]
[352397252,1739079043373,-500.0,0.00010273,2]
[352397253,1739079043383,-503.08207997,0.00010273,2]
[352397254,1739079043393,-500.0,0.00010273,2]
[352397255,1739079043402,-500.0,0.00010273,2]
[352397256,1739079043411,-330.96053484,0.00010273,2]
[352397257,1739079043420,-500.0,0.00010273,2]
[352397258,1739079043430,-500.0,0.00010273,2]
[352397259,1739079043439,-500.0,0.00010273,2]
[352397260,1739079043448,-500.0,0.00010273,2]
[352397261,1739079043457,-500.0,0.00010273,2]
[352397262,1739079043466,-885.9,0.00010273,2]
[352397263,1739079043475,-500.0,0.00010273,2]
[352397264,1739079043485,-500.0,0.00010273,2]
[352397265,1739079043494,-500.0,0.00010273,2]
[352397266,1739079043503,-353.44794675,0.00010273,2]
[352397267,1739079043513,-500.0,0.00010273,2]
[352397268,1739079043522,-500.0,0.00010273,2]
[352397269,1739079043532,-500.0,0.00010273,2]
[352397270,1739079043542,-500.0,0.00010273,2]
[352397271,1739079043552,-500.0,0.00010273,2]
[352397272,1739079043561,-94.88566393,0.00010284,2]
[352397273,1739079043581,-755.29887141,0.00010284,2]
[352397299,1739079045674,-414.37863846,8.256e-05,2]
[352397301,1739079045686,-485.30651923,8.256e-05,2]
[352397303,1739079045699,-577.49646577,8.256e-05,2]
[352397306,1739079045710,-2340.35007654,8.256e-05,2]
[352397308,1739079045719,-500.0,9.999e-05,2]
[352397310,1739079045728,-134.70546466,0.00010284,2]
[352397312,1739079045737,-431.7357272,0.00010298,2]
[352397314,1739079045746,-500.0,0.0001041,2]
[352397316,1739079045757,-265.59616351,0.0001041,2]
[352397318,1739079045766,-500.0,0.0001041,2]
[352397320,1739079045776,-500.0,0.0001041,2]
[352397322,1739079045785,-500.0,0.0001041,2]
[352397324,1739079045794,-597.11,0.0001041,2]
[352397326,1739079045803,-500.0,0.0001041,2]
[352397328,1739079045812,-500.0,0.0001041,2]
[352397330,1739079045820,-500.0,0.0001041,2]
[352397332,1739079045829,-500.0,0.0001041,2]
[352397334,1739079045838,-500.0,0.0001041,2]
[352397336,1739079045847,-500.0,0.0001041,2]
[352397338,1739079045855,-500.0,0.0001041,2]
[352397339,1739079045865,-430.93306939,0.0001041,2]
[352397341,1739079045874,-500.0,0.0001041,2]
[352397342,1739079045882,-500.0,0.0001041,2]
[352397343,1739079045891,-500.0,0.0001041,2]
[352397344,1739079045901,-263.88755059,0.0001041,2]
[352397345,1739079045910,-490.29847455,0.0001041,2]
[352397346,1739079045919,-500.0,0.0001041,2]
[352397347,1739079045928,-500.0,0.0001041,2]
[352397348,1739079045937,-510.42798499,0.0001041,2]
[352397349,1739079045946,-885.9,0.0001041,2]
[352397350,1739079045955,-500.0,0.0001041,2]
[352397351,1739079045964,-500.0,0.0001041,2]
[352397352,1739079045973,-500.0,0.0001041,2]
[352397353,1739079045983,-258.73237288,0.0001041,2]
[352397354,1739079045992,-500.0,0.0001041,2]
[352397355,1739079046002,-500.0,0.0001041,2]
[352397356,1739079046011,-500.0,0.0001041,2]
[352397357,1739079046020,-646.18733832,0.0001041,2]
[352397358,1739079046029,-780.85,0.00010443,2]
[352397359,1739079046038,-1000.0,0.00010465,2]
[352397360,1739079046047,-279.39443227,0.00010547,2]
[352397361,1739079046056,-500.0,0.00010547,2]
[352397362,1739079046065,-500.0,0.00010547,2]
[352397363,1739079046074,-500.0,0.00010547,2]
[352397364,1739079046084,-597.11,0.00010547,2]
[352397365,1739079046093,-500.0,0.00010547,2]
[352397366,1739079046102,-500.0,0.00010547,2]
[352397367,1739079046112,-500.0,0.00010547,2]
[352397368,1739079046122,-500.0,0.00010547,2]
[352397369,1739079046131,-500.0,0.00010547,2]
[352397370,1739079046140,-155.96760535,0.00010547,2]
[352397371,1739079046149,-500.0,0.00010547,2]
[352397372,1739079046158,-500.0,0.00010547,2]
[352397373,1739079046167,-500.0,0.00010547,2]
[352397374,1739079046176,-500.0,0.00010547,2]
[352397375,1739079046186,-500.0,0.00010547,2]
[352397376,1739079046195,-500.0,0.00010547,2]
[352397377,1739079046205,-885.9,0.00010547,2]
[352397378,1739079046215,-500.0,0.00010547,2]
[352397379,1739079046224,-500.0,0.00010547,2]
[352397380,1739079046233,-500.0,0.00010547,2]
[352397381,1739079046243,-500.0,0.00010547,2]
[352397382,1739079046252,-500.0,0.00010547,2]
[352397383,1739079046261,-500.0,0.00010547,2]
[352397384,1739079046271,-431.7357272,0.00010642,2]
[352397385,1739079046280,-500.0,0.00010684,2]
[352397386,1739079046290,-500.0,0.00010684,2]
[352397387,1739079046299,-500.0,0.00010684,2]
[352397388,1739079046311,-597.11,0.00010684,2]
[352397389,1739079046320,-500.0,0.00010684,2]
[352397390,1739079046329,-500.0,0.00010684,2]
[352397391,1739079046339,-500.0,0.00010684,2]
[352397392,1739079046348,-500.0,0.00010684,2]
[352397393,1739079046358,-311.97553543,0.00010684,2]
[352397394,1739079046367,-514.37476534,0.00010684,2]
[352397395,1739079046375,-269.56218337,0.00010684,2]
[352397396,1739079046384,-500.0,0.00010684,2]
[352397397,1739079046395,-500.0,0.00010684,2]
[352397398,1739079046408,-500.0,0.00010684,2]
[352397399,1739079046417,-500.0,0.00010684,2]
[352397400,1739079046426,-885.9,0.00010684,2]
[352397401,1739079046437,-500.0,0.00010684,2]
[352397402,1739079046446,-500.0,0.00010684,2]
[352397403,1739079046455,-500.0,0.00010684,2]
[352397404,1739079046465,-500.0,0.00010684,2]
[352397405,1739079046474,-500.0,0.00010684,2]
[352397406,1739079046484,-500.0,0.00010684,2]
[352397407,1739079046494,-587.0,0.00010689,2]
[352397408,1739079046504,-439.73,0.00010693,2]
[352397409,1739079046514,-439.73,0.00010693,2]
[352397410,1739079046523,-268.83,0.00010693,2]
[352397411,1739079046533,-1906.0,0.000107,2]
[352397412,1739079046543,-1749.0,0.000107,2]
[352397413,1739079046552,-168.02,0.00010738,2]
[352397414,1739079046561,-1457.914,0.00010815,2]
[352397415,1739079046570,-783.0,0.00010815,2]
[352397416,1739079046579,-2954.0,0.00010815,2]
[352397417,1739079046589,-776.109,0.00010815,2]
[352397418,1739079046599,-539.0,0.00010815,2]
[352397419,1739079046609,-2024.0,0.00010815,2]
[352397420,1739079046619,-785.161,0.00010815,2]
[352397421,1739079046630,-3913.0,0.00010815,2]
[352397422,1739079046640,-1273.0,0.00010815,2]
[352397423,1739079046652,-150.0,0.00010815,2]
[352397424,1739079046662,-1109.0,0.00010815,2]
[352397425,1739079046672,-500.0,0.00010821,2]
[352397426,1739079046681,-500.0,0.00010821,2]
[352397427,1739079046691,-500.0,0.00010821,2]
[352397428,1739079046701,-597.11,0.00010821,2]
[352397429,1739079046710,-500.0,0.00010821,2]
[352397430,1739079046720,-500.0,0.00010821,2]
[352397431,1739079046729,-500.0,0.00010821,2]
[352397432,1739079046738,-484.60886057,0.00010821,2]
[352397433,1739079046748,-500.0,0.00010821,2]
[352397434,1739079046757,-604.39255515,0.00010821,2]
[352397435,1739079046767,-500.0,0.00010821,2]
[352397436,1739079046776,-500.0,0.00010821,2]
[352397437,1739079046785,-885.9,0.00010821,2]
[352397438,1739079046795,-500.0,0.00010821,2]
[352397439,1739079046803,-500.0,0.00010821,2]
[352397440,1739079046812,-500.0,0.00010821,2]
[352397441,1739079046823,-500.0,0.00010821,2]
[352397442,1739079046832,-500.0,0.00010821,2]
[352397443,1739079046841,-500.0,0.00010821,2]
[352397444,1739079046851,-349.9,0.00010824,2]
[352397445,1739079046860,-3576.378,0.00010851,2]
[352397446,1739079046869,-161.035,0.00010851,2]
[352397447,1739079046878,-736.41250707,0.000109,2]
[352397448,1739079046887,-431.7357272,0.00010908,2]
[352397449,1739079046898,-216.79338702,0.00010932,2]
[352397450,1739079046908,-257.54423011,0.00010932,2]
[352397451,1739079046917,-500.0,0.00010958,2]
[352397452,1739079046927,-500.0,0.00010958,2]
[352397453,1739079046936,-500.0,0.00010958,2]
[352397454,1739079046946,-597.11,0.00010958,2]
[352397455,1739079046956,-500.0,0.00010958,2]
[352397456,1739079046966,-500.0,0.00010958,2]
[352397457,1739079046975,-500.0,0.00010958,2]
[352397458,1739079046984,-242.89863393,0.00010958,2]
[352397459,1739079046994,-500.0,0.00010958,2]
[352397460,1739079047003,-500.0,0.00010958,2]
[352397461,1739079047012,-885.9,0.00010958,2]
[352397462,1739079047021,-500.0,0.00010958,2]
[352397463,1739079047031,-500.0,0.00010958,2]
[352397464,1739079047040,-500.0,0.00010958,2]
[352397465,1739079047048,-500.0,0.00010958,2]
[352397466,1739079047058,-500.0,0.00010958,2]
[352397467,1739079047066,-500.0,0.00010958,2]
[352397468,1739079047075,-200.0,0.00010959,2]
[352397469,1739079047084,-200.0,0.00010959,2]
[352397470,1739079047094,-200.0,0.00010959,2]
[352397471,1739079047103,-4000.0,0.00010959,2]
[352397472,1739079047112,-150.0,0.00010959,2]
[352397473,1739079047122,-11476.5531339,0.00010991,2]
[352397474,1739079047132,-3492.7392235,0.00010991,2]
[352397475,1739079047141,-352.6557658,0.00010999,2]
[352397476,1739079047152,-273.7165134,0.00010999,2]
[352397477,1739079047162,-500.0,0.00010999,2]
[352397478,1739079047172,-500.0,0.00010999,2]
[352397479,1739079047181,-500.0,0.00010999,2]
[352397480,1739079047191,-500.0,0.00010999,2]
[352397481,1739079047200,-500.0,0.00010999,2]
[352397482,1739079047210,-500.0,0.00010999,2]
[352397483,1739079047219,-500.0,0.00010999,2]
[352397484,1739079047229,-500.0,0.00010999,2]
[352397485,1739079047238,-500.0,0.00010999,2]
[352397486,1739079047248,-500.0,0.00010999,2]
[352397487,1739079047257,-381.65953814,0.00010999,2]
[352397488,1739079047267,-14417.02852002,0.00011,2]
[352397489,1739079047280,-2501.29833015,0.00011,2]
[352397492,1739079724114,840.42,0.0002,120]
[352397528,1739080231957,-702.76,8.219e-05,2]
[352397529,1739080231967,-537.575,8.699e-05,2]
[352397530,1739080231977,-456.79000399,8.699e-05,2]
[352397531,1739080232187,-1551.79589601,8.699e-05,2]
[352397532,1739080232391,-2500.0,8.851e-05,2]
[352397533,1739080232402,-81.1066843,8.851e-05,2]
[352397566,1739080237866,-150.0,8.972e-05,2]
[352397567,1739080237875,-922.35,8.973e-05,2]
[352397568,1739080237886,-10591.17998013,8.973e-05,2]
[352397569,1739080237897,-16131.68368021,8.973e-05,2]
[352397570,1739080237909,-10841.78753966,8.973e-05,2]
[352397571,1739080237920,-5000.0,8.973e-05,2]
[352397572,1739080237929,-1000.0,9.775e-05,2]
[352397573,1739080237938,-209.94,9.796e-05,2]
[352397574,1739080237948,-230.77,9.81e-05,2]
[352397575,1739080237958,-501.66410514,9.999e-05,2]
[352397576,1739080237968,-500.0,9.999e-05,2]
[352397577,1739080237978,-500.0,9.999e-05,2]
[352397578,1739080237987,-500.0,9.999e-05,2]
[352397579,1739080237996,-500.0,9.999e-05,2]
[352397580,1739080238006,-500.0,9.999e-05,2]
[352397581,1739080238015,-500.0,9.999e-05,2]
[352397582,1739080238026,-500.0,9.999e-05,2]
[352397583,1739080238036,-500.0,9.999e-05,2]
[352397584,1739080238046,-352.73,0.00010137,2]
[352397586,1739080238054,-377.57,0.00010295,2]
[352397588,1739080238064,-441.0,0.00010438,2]
[352397590,1739080238073,-702.76,0.00010468,2]
[352397592,1739080238082,-985.27,0.000105,2]
[352397594,1739080238092,-1000.0,0.000107,2]
[352397596,1739080238101,-1272.0,0.00010815,2]
[352397598,1739080238110,-2020.0,0.00010815,2]
[352397600,1739080238119,-150.429,0.00010815,2]
[352397602,1739080238128,-638.0,0.00010815,2]
[352397604,1739080238137,-569.0,0.00010815,2]
[352397606,1739080238148,-2954.0,0.00010815,2]
[352397609,1739080238157,-661.549,0.00010815,2]
[352397611,1739080238166,-539.0,0.00010815,2]
[352397613,1739080238175,-150.0,0.00010815,2]
[352397615,1739080238184,-3909.0,0.00010815,2]
[352397617,1739080238193,-150.0,0.00010815,2]
[352397619,1739080238202,-150.0,0.00010815,2]
[352397621,1739080238211,-1109.0,0.00010815,2]
[352397623,1739080238226,-2861.103,0.00010829,2]
[352397625,1739080238236,-161.035,0.00010829,2]
[352397627,1739080238245,-17041.71716445,0.00010835,2]
[352397629,1739080238257,-811.351313,0.00010835,2]
[352397631,1739080238269,-10563.07437962,0.00010835,2]
[352397633,1739080238280,-9260.05823244,0.00010835,2]
[352397655,1739080239879,-6033.82809767,0.00010835,2]
[352397656,1739080239888,-51270.72,0.000109,2]
[352397657,1739080239897,-687.31833996,0.00010921,2]
[352397658,1739080239906,-3223.30475595,0.00010921,2]
[352397659,1739080239916,-216.793387,0.00010921,2]
[352397660,1739080239926,-218.97321072,0.00010931,2]
[352397661,1739080239935,-159.75812975,0.00010931,2]
[352397662,1739080239944,-1110.32229694,0.00010932,2]
[352397663,1739080239953,-558.5,0.00010938,2]
[352397664,1739080239963,-150.0,0.00010959,2]
[352397665,1739080239973,-4000.0,0.00010959,2]
[352397666,1739080239983,-9955.6666601,0.00010989,2]
[352397667,1739080239993,-3029.8772666,0.00010991,2]
[352397668,1739080240002,-1000.0,0.00010996,2]
[352397669,1739080240011,-233.73537257,0.00010998,2]
[352397670,1739080240020,-282.95731011,0.00010998,2]
[352397671,1739080240030,-500.0,0.00010998,2]
[352397672,1739080240040,-254.03059649,0.00010998,2]
[352397673,1739080240049,-367.00712445,0.00010998,2]
[352397674,1739080240058,-473.3031866,0.00010998,2]
[352397675,1739080240068,-500.0,0.00010998,2]
[352397676,1739080240077,-500.0,0.00010998,2]
[352397677,1739080240086,-176.3278829,0.00010999,2]
[352397678,1739080240096,-500.0,0.00010999,2]
[352397679,1739080240105,-194.52075495,0.00010999,2]
[352397680,1739080240114,-500.0,0.00010999,2]
[352397681,1739080240124,-500.0,0.00010999,2]
[352397682,1739080240133,-500.0,0.00010999,2]
[352397683,1739080240142,-500.0,0.00010999,2]
[352397684,1739080240151,-500.0,0.00010999,2]
[352397685,1739080240160,-500.0,0.00010999,2]
[352397686,1739080240171,-500.0,0.00010999,2]
[352397687,1739080240180,-500.0,0.00010999,2]
[352397688,1739080240189,-500.0,0.00010999,2]
[352397689,1739080240198,-500.0,0.00010999,2]
[352397690,1739080240207,-500.0,0.00010999,2]
[352397691,1739080240216,-483.75324652,0.00010999,2]
[352397693,1739080240225,-500.0,0.00010999,2]
[352397695,1739080240235,-520.73,0.00010999,2]
[352397697,1739080240244,-500.0,0.00010999,2]
[352397699,1739080240253,-500.0,0.00010999,2]
[352397702,1739080240262,-500.0,0.00010999,2]
[352397704,1739080240271,-590.6,0.00010999,2]
[352397705,1739080240280,-500.0,0.00010999,2]
[352397707,1739080240289,-500.0,0.00010999,2]
[352397709,1739080240299,-500.0,0.00010999,2]
[352397711,1739080240307,-502.04943696,0.00010999,2]
[352397713,1739080240316,-500.0,0.00010999,2]
[352397715,1739080240326,-500.0,0.00010999,2]
[352397717,1739080240334,-500.0,0.00010999,2]
[352397719,1739080240343,-500.0,0.00010999,2]
[352397721,1739080240352,-500.0,0.00010999,2]
[352397723,1739080240361,-501.12994514,0.00010999,2]
[352397725,1739080240370,-500.0,0.00010999,2]
[352397727,1739080240379,-500.0,0.00010999,2]
[352397729,1739080240388,-500.0,0.00010999,2]
[352397731,1739080240397,-500.0,0.00010999,2]
[352397733,1739080240406,-508.38425139,0.00010999,2]
[352397735,1739080240416,-500.0,0.00010999,2]
[352397737,1739080240425,-500.0,0.00010999,2]
[352397739,1739080240434,-500.0,0.00010999,2]
[352397741,1739080240442,-500.0,0.00010999,2]
[352397743,1739080240451,-500.0,0.00010999,2]
[352397745,1739080240460,-500.0,0.00010999,2]
[352397747,1739080240470,-45457.0,0.00011,2]
[352397749,1739080240480,-5396.08780009,0.00011,2]
[352397751,1739080240489,-65983.38457966,0.00011,2]
[352397753,1739080240502,-785.83533901,0.00011,2]
[352397756,1739080240516,-1080.5154265,0.00011,2]
[352397758,1739080240527,-32437.45539673,0.00011,2]
[352397760,1739080240537,-152.0,0.00011,2]
[352397762,1739080240546,-200.0,0.00011,2]
[352397764,1739080240555,-112.86024792,0.00011,2]
[352397767,1739080240575,-87.13975208,0.00011,2]
[352397769,1739080240584,-532.76522732,0.00011,2]
[352397827,1739080242852,-2582.80492268,0.00011,2]
[352397828,1739080242862,-5600.23327039,0.00011008,2]
[352397829,1739080242874,-490.44403302,0.00011008,2]
[352397830,1739080242885,-1721.2882405,0.00011008,2]
[352397831,1739080242896,-2849.03900803,0.00011008,2]
[352397832,1739080242906,-383.39,0.0001101,2]
[352397833,1739080242916,-383.39,0.0001101,2]
[352397834,1739080242925,-383.39,0.0001101,2]
[352397835,1739080242934,-383.39,0.0001101,2]
[352397836,1739080242944,-383.39,0.0001101,2]
[352397837,1739080242953,-383.39,0.0001101,2]
[352397838,1739080242963,-383.39,0.0001101,2]
[352397839,1739080242973,-383.39,0.0001101,2]
[352397840,1739080242983,-383.39,0.0001101,2]
[352397841,1739080242992,-383.39,0.0001101,2]
[352397842,1739080243002,-383.39,0.0001101,2]
[352397843,1739080243011,-383.39,0.0001101,2]
[352397844,1739080243020,-383.39,0.0001101,2]
[352397845,1739080243031,-383.39,0.0001101,2]
[352397846,1739080243043,-383.39,0.0001101,2]
[352397847,1739080243053,-383.39,0.0001101,2]
[352397848,1739080243062,-383.39,0.0001101,2]
[352397849,1739080243072,-383.39,0.0001101,2]
[352397850,1739080243081,-383.39,0.0001101,2]
[352397851,1739080243090,-383.39,0.0001101,2]
[352397852,1739080243100,-383.39,0.0001101,2]
[352397853,1739080243109,-319.33745556,0.0001101,2]
[352397854,1739080243120,-64.05254444,0.0001101,2]
[352397855,1739080243129,-383.39,0.0001101,2]
[352397856,1739080243139,-383.39,0.0001101,2]
[352397857,1739080243148,-383.39,0.0001101,2]
[352397858,1739080243157,-383.39,0.0001101,2]
[352397859,1739080243166,-383.39,0.0001101,2]
[352397860,1739080243175,-383.39,0.0001101,2]
[352397861,1739080243186,-130.60745555,0.0001101,2]
[352397862,1739080243202,-252.78254445,0.0001101,2]
[352397863,1739080243213,-383.39,0.0001101,2]
[352397864,1739080243222,-383.39,0.0001101,2]
[352397865,1739080243231,-383.39,0.0001101,2]
[352397866,1739080243241,-383.39,0.0001101,2]
[352397867,1739080243250,-187.05745555,0.0001101,2]
[352397868,1739080243262,-196.33254445,0.0001101,2]
[352397869,1739080243271,-326.11745555,0.0001101,2]
[352397870,1739080243282,-57.27254445,0.0001101,2]
[352397871,1739080243291,-383.39,0.0001101,2]
[352397872,1739080243301,-383.39,0.0001101,2]
[352397873,1739080243310,-49.03844955,0.0001101,2]
[352397874,1739080243321,-334.35155045,0.0001101,2]
[352397876,1739080243331,-383.39,0.0001101,2]
[352397877,1739080243339,-136.81594274,0.0001101,2]
[352397878,1739080243354,-246.57405726,0.0001101,2]
[352397879,1739080243364,-49.56037609,0.0001101,2]
[352397880,1739080243375,-264.76451,0.0001101,2]
[352397881,1739080243387,-69.06511391,0.0001101,2]
[352397882,1739080243396,-383.39,0.0001101,2]
[352397883,1739080243406,-383.39,0.0001101,2]
[352397884,1739080243416,-383.39,0.0001101,2]
[352397885,1739080243426,-383.39,0.0001101,2]
[352397886,1739080243435,-383.39,0.0001101,2]
[352397887,1739080243445,-383.39,0.0001101,2]
[352397888,1739080243455,-383.39,0.0001101,2]
[352397889,1739080243464,-383.39,0.0001101,2]
[352397890,1739080243474,-383.39,0.0001101,2]
[352397891,1739080243484,-383.39,0.0001101,2]
[352397892,1739080243496,-383.39,0.0001101,2]
[352397893,1739080243507,-383.39,0.0001101,2]
[352397894,1739080243517,-383.39,0.0001101,2]
[352397895,1739080243528,-383.39,0.0001101,2]
[352397896,1739080243538,-383.39,0.0001101,2]
[352397897,1739080243548,-383.39,0.0001101,2]
[352397898,1739080243558,-383.39,0.0001101,2]
[352397899,1739080243567,-383.39,0.0001101,2]
[352397900,1739080243576,-383.39,0.0001101,2]
[352397901,1739080243586,-383.39,0.0001101,2]
[352397902,1739080243596,-383.39,0.0001101,2]
[352397903,1739080243605,-383.39,0.0001101,2]
[352397904,1739080243615,-383.39,0.0001101,2]
[352397905,1739080243624,-383.39,0.0001101,2]
[352397906,1739080243634,-383.39,0.0001101,2]
[352397907,1739080243643,-383.39,0.0001101,2]
[352397908,1739080243654,-383.39,0.0001101,2]
[352397909,1739080243664,-383.39,0.0001101,2]
[352397910,1739080243674,-383.39,0.0001101,2]
[352397911,1739080243684,-383.39,0.0001101,2]
[352397912,1739080243694,-383.39,0.0001101,2]
[352397913,1739080243708,-383.39,0.0001101,2]
[352397914,1739080243717,-383.39,0.0001101,2]
[352397915,1739080243726,-383.39,0.0001101,2]
[352397916,1739080243735,-383.39,0.0001101,2]
[352397917,1739080243746,-383.39,0.0001101,2]
[352397918,1739080243756,-383.39,0.0001101,2]
[352397919,1739080243765,-383.39,0.0001101,2]